lending/lending_fUSD_20240110
["ID","MTS","AMOUNT","RATE_DAILY","PERIOD"]
[311101260,1704905438596,-2734.28685204,0.0003,2]
[311101263,1704905438605,-155.0,0.0003,2]
[311101264,1704905438614,-581.48240596,0.0003,2]
[311101266,1704905438623,-690.55381442,0.0003,2]
[311101269,1704905438633,-156.62,0.00030052,2]
[311101270,1704905438642,-616.39,0.00030062,2]
[311101273,1704905438651,-10000.0,0.00030137,2]
[311101275,1704905438660,-153.84,0.00030137,2]
[311101277,1704905438669,-465.41,0.00030137,2]
[311101279,1704905438678,-616.39,0.00030208,2]
[311101281,1704905438686,-263.21,0.00030266,2]
[311101283,1704905438695,-1000.0,0.00030292,2]
[311101285,1704905438704,-307.73,0.00030345,2]
[311101286,1704905438713,-616.39,0.00030355,2]
[311101288,1704905438722,-156.62,0.00030398,2]
[311101291,1704905438731,-616.39,0.00030502,2]
[311101292,1704905438740,-185.27868168,0.00030548,2]
[311101294,1704905438750,-616.39,0.00030648,2]
[311101296,1704905438759,-156.62,0.00030745,2]
[311101298,1704905438768,-1302.53989304,0.00030792,2]
[311101301,1704905438778,-9797.76239264,0.00030857,4]
[311101303,1704905438788,-155.0,0.00030933,4]
[311101305,1704905438797,-11556.33587587,0.00030933,4]
[311101307,1704905438806,-220.56685301,0.00030933,4]
[311101309,1704905438815,-474.41987552,0.00030933,2]
[311101311,1704905438824,-1020.60072083,0.00030933,4]
[311101313,1704905438832,-1154.8281513,0.00030933,4]
[311101315,1704905438842,-188.82380756,0.00030933,4]
[311101317,1704905438852,-278.75448039,0.00030933,4]
[311101319,1704905438860,-309.58159212,0.00030933,4]
[311101321,1704905438869,-201.59167609,0.00030933,4]
[311101323,1704905438879,-376.11195413,0.00030933,4]
[311101324,1704905438888,-155.10005977,0.00030933,4]
[311101326,1704905438897,-158.4761644,0.00030933,4]
[311101328,1704905438906,-227.94064555,0.00030933,4]
[311101330,1704905438916,-5800.88551344,0.00030933,2]
[311101333,1704905438925,-72703.64858357,0.00030934,4]
[311101335,1704905438934,-1195.509,0.00030937,2]
[311101336,1704905438943,-1846.0,0.00030937,2]
[311101338,1704905438952,-944.0,0.00030937,2]
[311101341,1704905438961,-724.018,0.00030937,2]
[311101342,1704905438970,-1323.172,0.00030937,2]
[311101344,1704905438979,-1251.0,0.00030937,2]
[311101345,1704905438989,-870.0,0.00030937,2]
[311101347,1704905438998,-184.317,0.00030937,2]
[311101349,1704905439007,-373.279,0.00030937,2]
[311101351,1704905439016,-204.648,0.00030937,2]
[311101353,1704905439025,-424.0,0.00030937,2]
[311101355,1704905439033,-25690.892,0.00030937,2]
[311101357,1704905439042,-2269.0,0.00030937,2]
[311101359,1704905439052,-19668.0,0.00030937,2]
[311101361,1704905439061,-2900.0,0.00030937,2]
[311101363,1704905439070,-2019.0,0.00030937,2]
[311101365,1704905439078,-467.65,0.00030938,2]
[311101367,1704905439087,-153.84,0.0003105,2]
[311101369,1704905439096,-156.62,0.00031091,2]
[311101371,1704905439105,-185.27868168,0.00031217,2]
[311101372,1704905439114,-263.21,0.00031368,2]
[311101374,1704905439123,-7500.0,0.00031406,2]
[311101376,1704905439132,-5000.0,0.00031406,2]
[311101378,1704905439141,-250.0,0.00031406,2]
[311101380,1704905439150,-156.62,0.00031438,2]
[311101382,1704905439159,-167.6,0.00031448,2]
[311101385,1704905439168,-465.41,0.00031448,2]
[311101387,1704905439178,-500.0,0.000315,2]
[311101389,1704905439187,-25737.17737743,0.000315,2]
[311101390,1704905439196,-291.46,0.00031507,2]
[311101393,1704905439206,-318.83,0.00031681,2]
[311101395,1704905439215,-155.35656423,0.00031764,2]
[311101396,1704905439224,-156.62,0.00031784,2]
[311101398,1704905439233,-307.73,0.0003179,2]
[311101400,1704905439243,-307.73,0.0003179,2]
[311101402,1704905439252,-182.77,0.00031799,2]
[311101404,1704905439262,-182.77,0.00031799,2]
[311101406,1704905439271,-182.77,0.00031799,2]
[311101408,1704905439280,-243131.057249,0.000318,2]
[311101410,1704905439289,-155.03847953,0.00031864,2]
[311101412,1704905439298,-185.27868168,0.00031886,2]
[311101414,1704905439308,-467.65,0.00031916,2]
[311101416,1704905439316,-153.84,0.00031963,2]
[311101418,1704905439325,-6043.81582693,0.00032,2]
[311101420,1704905439334,-297.7683181,0.00032,4]
[311101422,1704905439343,-488.57293554,0.00032,4]
[311101424,1704905439352,-3000.0,0.00032,2]
[311101426,1704905439361,-3000.0,0.0003201,2]
[311101428,1704905439370,-3000.0,0.0003202,2]
[311101430,1704905439380,-3000.0,0.0003203,2]
[311101432,1704905439389,-3000.0,0.0003204,2]
[311101434,1704905439398,-3000.0,0.0003205,2]
[311101436,1704905439407,-3000.0,0.0003206,2]
[311101437,1704905439417,-3000.0,0.0003207,2]
[311101439,1704905439426,-3000.0,0.0003208,2]
[311101441,1704905439435,-3000.0,0.0003209,2]
[311101443,1704905439444,-3000.0,0.000321,2]
[311101445,1704905439453,-3000.0,0.0003211,2]
[311101447,1704905439462,-3841.139845,0.0003212,2]
[311101449,1704905439471,-156.62,0.0003213,2]
[311101451,1704905439480,-155.03847875,0.00032254,2]
[311101453,1704905439491,-1846.55,0.00032286,2]
[311101455,1704905439500,-23856.0,0.000324,2]
[311101457,1704905439509,-3182.0,0.000324,2]
[311101459,1704905439518,-263.21,0.0003247,2]
[311101461,1704905439528,-156.62,0.00032477,2]
[311101463,1704905439537,-185.27868168,0.00032555,2]
[311101465,1704905439546,-155.03847875,0.00032644,2]
[311101467,1704905439555,-1302.53989304,0.00032671,2]
[311101469,1704905439567,-156.62,0.00032823,2]
[311101471,1704905439576,-400.0,0.00032876,7]
[311101473,1704905439585,-500.0,0.00032876,7]
[311101475,1704905439594,-500.0,0.00032876,7]
[311101477,1704905439603,-400.0,0.00032876,7]
[311101479,1704905439612,-153.84,0.00032877,2]
[311101481,1704905439621,-2952.29,0.00032877,2]
[311101483,1704905439630,-459.13,0.00032877,15]
[311101485,1704905439639,-1000.0,0.00032879,2]
[311101487,1704905439647,-1000.0,0.00032879,2]
[311101489,1704905439657,-1000.0,0.00032879,2]
[311101491,1704905439666,-1000.0,0.00032879,2]
[311101493,1704905439675,-1000.0,0.00032879,2]
[311101495,1704905439684,-8646.75,0.0003288,2]
[311101497,1704905439693,-8646.75,0.0003288,2]
[311101499,1704905439703,-8646.75,0.0003288,2]
[311101501,1704905439712,-8646.75,0.0003288,2]
[311101503,1704905439721,-8646.75,0.0003288,2]
[311101505,1704905439730,-467.65,0.00032894,2]
[311101507,1704905439739,-155.0,0.00033,4]
[311101509,1704905439748,-155.03847875,0.00033034,2]
[311101511,1704905439757,-152.0,0.00033106,3]
[311101513,1704905439766,-185.27868168,0.00033224,2]
[311101515,1704905439775,-155.03847875,0.00033424,2]
[311101517,1704905439784,-263.21,0.00033572,2]
[311101519,1704905439794,-272.7358946,0.000336,4]
[311101538,1704905439968,-1000.0,0.00033658,2]
[311101541,1704905439979,-153.84,0.0003379,2]
[311101543,1704905439993,-155.03847875,0.00033814,2]
[311101545,1704905440002,-467.65,0.00033873,2]
[311101547,1704905440011,-185.27868168,0.00033893,2]
[311101549,1704905440023,-307.73,0.00033927,2]
[311101551,1704905440033,-525.218,0.00033937,2]
[311101553,1704905440042,-1234.0,0.00033937,2]
[311101555,1704905440051,-1251.0,0.00033937,2]
[311101557,1704905440060,-1842.387,0.00033937,2]
[311101559,1704905440069,-9015.757,0.00033937,2]
[311101561,1704905440078,-2886.0,0.00033937,2]
[311101562,1704905440087,-318.83,0.00033944,2]
[311101564,1704905440096,-1000.0,0.00034,4]
[311101566,1704905440105,-155.0,0.00034,4]
[311101568,1704905440114,-801.97521111,0.00034,4]
[311101570,1704905440123,-205.0,0.00034092,2]
[311101572,1704905440132,-155.03847875,0.00034204,2]
[311101574,1704905440141,-10000.03,0.00034427,3]
[311101576,1704905440150,-3697.83501,0.0003452,2]
[311101578,1704905440159,-24990.575041,0.0003452,2]
[311101580,1704905440168,-4984.55,0.00034521,2]
[311101582,1704905440178,-1302.53989304,0.00034551,2]
[311101583,1704905440187,-185.27868168,0.00034562,2]
[311101584,1704905440197,-155.03847875,0.00034593,2]
[311101585,1704905440206,-172.99392892,0.00034617,2]
[311101586,1704905440215,-243.69,0.00034619,2]
[311101587,1704905440225,-36565.26383445,0.0003462,10]
[311101588,1704905440235,-29459.07473766,0.0003462,10]
[311101589,1704905440244,-46206.78876477,0.0003462,10]
[311101590,1704905440254,-180.0,0.00034658,2]
[311101591,1704905440263,-263.21,0.00034675,2]
[311101592,1704905440273,-153.84,0.00034703,2]
[311101593,1704905440282,-291.46,0.00034703,2]
[311101594,1704905440291,-307.73,0.00034784,2]
[311101595,1704905440301,-5546.752515,0.00034794,2]
[311101597,1704905440310,-37485.862561,0.00034794,2]
[311101598,1704905440319,-1002.41071738,0.00034797,5]
[311101600,1704905440328,-1000.0,0.00034834,2]
[311101602,1704905440338,-467.65,0.00034851,2]
[311101604,1704905440347,-807.97387537,0.000349,2]
[311101606,1704905440356,-2294.68107797,0.000349,7]
[311101608,1704905440366,-7395.670021,0.00034931,2]
[311101610,1704905440376,-49981.150082,0.00034931,2]
[311101613,1704905440385,-155.03847875,0.00034983,2]
[311101615,1704905440394,-307.73,0.0003499,2]
[311101617,1704905440403,-406.14,0.00034999,2]
[311101619,1704905440412,-406.14,0.00034999,2]
[311101621,1704905440422,-100000.0,0.00035,2]
[311101622,1704905440430,-16417.45689362,0.00035,2]
[311101624,1704905440439,-5000.0,0.00035,2]
[311101626,1704905440449,-2500.0,0.00035,2]
[311101628,1704905440458,-16495.5114499,0.00035,2]
[311101631,1704905440467,-15680.73832247,0.00035,7]
[311101632,1704905440479,-155.0,0.00035,2]
[311101634,1704905440488,-1257.66937248,0.00035,4]
[311101636,1704905440497,-55810.69217093,0.00035,4]
[311101638,1704905440507,-448.73636838,0.00035,4]
[311101641,1704905440516,-707.01055253,0.00035,4]
[311101643,1704905440525,-205.73491777,0.00035,4]
[311101645,1704905440534,-154.75908958,0.00035,5]
[311101647,1704905440543,-520.12921631,0.00035,4]
[311101649,1704905440552,-239.50469829,0.00035,2]
[311101651,1704905440562,-239.50469829,0.00035,2]
[311101653,1704905440570,-239.50469829,0.00035,2]
[311101655,1704905440580,-239.50469829,0.00035,2]
[311101657,1704905440589,-239.50469829,0.00035,2]
[311101658,1704905440598,-239.50469829,0.00035,2]
[311101660,1704905440607,-239.50469829,0.00035,2]
[311101662,1704905440616,-239.50469829,0.00035,2]
[311101664,1704905440624,-239.50469829,0.00035,2]
[311101666,1704905440636,-239.50469829,0.00035,2]
[311101668,1704905440645,-239.50469829,0.00035,2]
[311101670,1704905440654,-239.50469829,0.00035,2]
[311101672,1704905440665,-239.50469829,0.00035,2]
[311101674,1704905440674,-239.50469829,0.00035,2]
[311101676,1704905440683,-239.50469829,0.00035,2]
[311101678,1704905440692,-239.50469829,0.00035,2]
[311101680,1704905440701,-239.50469829,0.00035,2]
[311101682,1704905440710,-239.50469829,0.00035,2]
[311101684,1704905440719,-239.50469829,0.00035,2]
[311101686,1704905440728,-239.50469829,0.00035,2]
[311101688,1704905440736,-239.50469829,0.00035,2]
[311101690,1704905440745,-239.50469829,0.00035,2]
[311101692,1704905440754,-239.50469829,0.00035,2]
[311101694,1704905440763,-239.50469829,0.00035,2]
[311101696,1704905440772,-239.50469829,0.00035,2]
[311101698,1704905440781,-239.50469829,0.00035,2]
[311101700,1704905440790,-239.50469829,0.00035,2]
[311101702,1704905440800,-239.50469829,0.00035,2]
[311101704,1704905440809,-239.50469829,0.00035,2]
[311101706,1704905440818,-239.50469829,0.00035,2]
[311101709,1704905440827,-239.50469829,0.00035,2]
[311101711,1704905440835,-239.50469829,0.00035,2]
[311101713,1704905440845,-239.50469829,0.00035,2]
[311101715,1704905440854,-239.50469829,0.00035,2]
[311101717,1704905440864,-239.50469829,0.00035,2]
[311101718,1704905440873,-239.50469829,0.00035,2]
[311101721,1704905440885,-239.50469829,0.00035,2]
[311101723,1704905440894,-239.50469829,0.00035,2]
[311101725,1704905440904,-239.50469829,0.00035,2]
[311101727,1704905440914,-239.50469829,0.00035,2]
[311101729,1704905440923,-239.50469829,0.00035,2]
[311101731,1704905440933,-239.50469829,0.00035,2]
[311101733,1704905440942,-239.50469829,0.00035,2]
[311101735,1704905440951,-239.50469829,0.00035,2]
[311101737,1704905440961,-239.50469829,0.00035,2]
[311101739,1704905440970,-239.50469829,0.00035,2]
[311101741,1704905440979,-239.50469829,0.00035,2]
[311101743,1704905440988,-239.50469829,0.00035,2]
[311101745,1704905440997,-239.50469829,0.00035,2]
[311101746,1704905441006,-239.50469829,0.00035,2]
[311101748,1704905441016,-239.50469829,0.00035,2]
[311101750,1704905441026,-239.50469829,0.00035,2]
[311101752,1704905441035,-239.50469829,0.00035,2]
[311101754,1704905441045,-239.50469829,0.00035,2]
[311101756,1704905441054,-239.50469829,0.00035,2]
[311101758,1704905441063,-239.50469829,0.00035,2]
[311101759,1704905441072,-239.50469829,0.00035,2]
[311101760,1704905441081,-239.50469829,0.00035,2]
[311101761,1704905441091,-239.50469829,0.00035,2]
[311101762,1704905441100,-239.50469829,0.00035,2]
[311101763,1704905441110,-239.50469829,0.00035,2]
[311101764,1704905441119,-239.50469829,0.00035,2]
[311101765,1704905441129,-239.50469829,0.00035,2]
[311101766,1704905441138,-239.50469829,0.00035,2]
[311101767,1704905441147,-239.50469829,0.00035,2]
[311101768,1704905441157,-239.50469829,0.00035,2]
[311101769,1704905441166,-239.50469829,0.00035,2]
[311101770,1704905441175,-239.50469829,0.00035,2]
[311101771,1704905441184,-239.50469829,0.00035,2]
[311101772,1704905441194,-239.50469829,0.00035,2]
[311101773,1704905441203,-239.50469829,0.00035,2]
[311101774,1704905441212,-239.50469829,0.00035,2]
[311101775,1704905441222,-239.50469829,0.00035,2]
[311101776,1704905441230,-239.50469829,0.00035,2]
[311101777,1704905441239,-239.50469829,0.00035,2]
[311101778,1704905441249,-239.50469829,0.00035,2]
[311101779,1704905441258,-239.50469829,0.00035,2]
[311101780,1704905441267,-239.50469829,0.00035,2]
[311101781,1704905441277,-239.50469829,0.00035,2]
[311101782,1704905441287,-239.50469829,0.00035,2]
[311101783,1704905441297,-239.50469829,0.00035,2]
[311101784,1704905441306,-19514.25929609,0.00035067,2]
[311101785,1704905441316,-9244.587526,0.00035068,2]
[311101786,1704905441325,-62476.437603,0.00035068,2]
[311101787,1704905441334,-285.13151198,0.00035211,2]
[311101788,1704905441344,-185.27868168,0.00035231,2]
[311101789,1704905441354,-1663.7081085,0.00035242,2]
[311101790,1704905441363,-184.41460374,0.00035273,2]
[311101791,1704905441373,-215.14462505,0.00035273,7]
[311101793,1704905441384,-3000.0,0.000353,3]
[311101795,1704905441393,-3000.0,0.0003531,3]
[311101797,1704905441402,-150.1,0.00035318,2]
[311101799,1704905441411,-3000.0,0.0003532,3]
[311101800,1704905441419,-3000.0,0.0003533,3]
[311101802,1704905441430,-307.73,0.00035332,2]
[311101804,1704905441439,-5192.235475,0.0003534,3]
[311101805,1704905441449,-12942.422536,0.00035342,2]
[311101806,1704905441457,-87467.012644,0.00035342,2]
[311101807,1704905441466,-155.03847875,0.00035373,2]
[311101808,1704905441476,-1634.77062553,0.00035426,6]
[311101809,1704905441487,-2338.8900847,0.00035449,7]
[311101810,1704905441497,-5439.94923971,0.00035449,7]
[311101811,1704905441506,-2294.68107791,0.00035454,8]
[311101812,1704905441518,-4729.42517534,0.00035472,7]
[311101813,1704905441527,-23778.72465696,0.00035495,7]
[311101814,1704905441539,-2638.44537317,0.00035518,7]
[311101815,1704905441548,-889.83108435,0.00035542,4]
[311101816,1704905441558,-6774.27859091,0.00035591,7]
[311101817,1704905441569,-14791.340042,0.000356,2]
[311101818,1704905441578,-250.0,0.000356,2]
[311101819,1704905441587,-150.0,0.00035616,2]
[311101820,1704905441596,-300.0,0.00035616,7]
[311101821,1704905441605,-450.0,0.00035616,12]
[311101822,1704905441614,-200.0,0.00035616,17]
[311101823,1704905441624,-153.84,0.00035616,2]
[311101824,1704905441635,-150.0,0.00035616,2]
[311101825,1704905441644,-3064.31,0.00035616,2]
[311101826,1704905441654,-1250.80118241,0.00035642,4]
[311101827,1704905441663,-245.09334314,0.00035694,4]
[311101828,1704905441673,-155.03847875,0.00035763,2]
[311101829,1704905441682,-263.21,0.00035777,2]
[311101830,1704905441691,-4984.55,0.00035798,2]
[311101831,1704905441699,-187.0,0.000358,2]
[311101832,1704905441709,-467.65,0.0003583,2]
[311101833,1704905441718,-3110.888641,0.00035871,2]
[311101834,1704905441728,-342.645283,0.00035871,2]
[311101835,1704905441736,-364.944773,0.00035871,2]
[311101836,1704905441745,-228.430188,0.00035871,2]
[311101837,1704905441755,-2073.925762,0.00035871,2]
[311101838,1704905441765,-174.159974,0.00035871,2]
[311101839,1704905441774,-185.27868168,0.000359,2]
[311101840,1704905441784,-307.73,0.0003599,2]
[311101841,1704905441793,-100000.0,0.00036,3]
[311101842,1704905441802,-199.05745623,0.00036,2]
[311101843,1704905441811,-13200.00044589,0.00036,2]
[311101844,1704905441822,-155.93041915,0.00036,2]
[311101845,1704905441831,-762.12654514,0.00036,4]
[311101846,1704905441841,-116682.45283383,0.00036,4]
[311101847,1704905441850,-245.27864267,0.00036,2]
[311101848,1704905441860,-6000.0,0.00036,4]
[311101849,1704905441869,-151.15,0.00036,2]
[311101850,1704905441879,-151.15,0.00036,2]
[311101851,1704905441888,-151.15,0.00036,2]
[311101852,1704905441897,-151.15,0.00036,2]
[311101853,1704905441906,-151.15,0.00036,2]
[311101854,1704905441916,-151.15,0.00036,2]
[311101855,1704905441925,-151.15,0.00036,2]
[311101856,1704905441935,-151.15,0.00036,2]
[311101857,1704905441945,-151.15,0.00036,2]
[311101858,1704905441954,-151.15,0.00036,2]
[311101859,1704905441963,-151.15,0.00036,2]
[311101860,1704905441972,-151.15,0.00036,2]
[311101861,1704905441982,-151.15,0.00036,2]
[311101862,1704905441991,-151.15,0.00036,2]
[311101863,1704905442000,-151.15,0.00036,2]
[311101864,1704905442009,-151.15,0.00036,2]
[311101865,1704905442018,-151.15,0.00036,2]
[311101866,1704905442027,-151.15,0.00036,2]
[311101867,1704905442036,-151.15,0.00036,2]
[311101868,1704905442044,-2294.68107791,0.00036008,8]
[311101869,1704905442053,-720.96053035,0.00036054,8]
[311101870,1704905442062,-151.15,0.00036079,2]
[311101871,1704905442071,-155.03847875,0.00036153,2]
[311101872,1704905442081,-318.83,0.00036208,2]
[311101873,1704905442090,-3110.888641,0.0003632,2]
[311101874,1704905442099,-342.645283,0.0003632,2]
[311101875,1704905442108,-364.944773,0.0003632,2]
[311101876,1704905442116,-228.430188,0.0003632,2]
[311101877,1704905442125,-2073.925762,0.0003632,2]
[311101878,1704905442135,-1302.53989304,0.0003643,2]
[311101879,1704905442145,-1000.0,0.00036438,120]
[311101880,1704905442155,-153.97,0.00036438,2]
[311101881,1704905442164,-807.97387525,0.00036479,2]
[311101882,1704905442173,-152.0,0.00036482,4]
[311101883,1704905442182,-22179.9358457,0.000365,7]
[311101884,1704905442191,-151.15,0.00036526,2]
[311101885,1704905442201,-153.84,0.0003653,2]
[311101886,1704905442211,-4894.0,0.00036536,2]
[311101887,1704905442221,-155.03847875,0.00036543,2]
[311101888,1704905442230,-150.0,0.00036554,2]
[311101889,1704905442239,-2294.68107791,0.00036562,9]
[311101890,1704905442249,-459.13,0.00036613,15]
[311101891,1704905442259,-3110.888641,0.00036768,2]
[311101892,1704905442267,-342.645283,0.00036768,2]
[311101893,1704905442276,-364.944773,0.00036768,2]
[311101894,1704905442284,-228.430188,0.00036768,2]
[311101895,1704905442293,-2073.925762,0.00036768,2]
[311101896,1704905442302,-467.65,0.00036808,2]
[311101897,1704905442311,-1000.0,0.000369,2]
[311101898,1704905442320,-155.03847875,0.00036933,2]
[311101899,1704905442329,-1211.647,0.00036937,2]
[311101900,1704905442338,-205.0,0.00036971,8]
[311101901,1704905442347,-151.15,0.0003699,2]
[311101902,1704905442356,-406.14,0.00036999,2]
[311101903,1704905442365,-100000.0,0.00037,2]
[311101904,1704905442374,-667.54212921,0.00037,7]
[311101905,1704905442384,-309.32760398,0.00037,4]
[311101906,1704905442393,-2135.17,0.00037,3]
[311101907,1704905442402,-2135.17,0.00037,3]
[311101908,1704905442411,-2135.17,0.00037,3]
[311101909,1704905442421,-2135.17,0.00037,3]
[311101910,1704905442430,-2135.17,0.00037,3]
[311101911,1704905442439,-2135.17,0.00037,3]
[311101912,1704905442448,-2135.17,0.00037,3]
[311101913,1704905442457,-2135.17,0.00037,3]
[311101914,1704905442466,-2135.17,0.00037,3]
[311101915,1704905442475,-2135.17,0.00037,3]
[311101916,1704905442484,-2135.17,0.00037,3]
[311101918,1704905442493,-2135.17,0.00037,3]
[311101920,1704905442502,-2135.17,0.00037,3]
[311101922,1704905442511,-2135.17,0.00037,3]
[311101923,1704905442520,-2135.17,0.00037,3]
[311101925,1704905442528,-2135.17,0.00037,3]
[311101927,1704905442537,-2135.17,0.00037,3]
[311101930,1704905442546,-2135.17,0.00037,3]
[311101933,1704905442554,-2135.17,0.00037,3]
[311101936,1704905442564,-2135.17,0.00037,3]
[311101939,1704905442573,-150.46942521,0.00037,2]
[311101941,1704905442582,-3000.0,0.00037,2]
[311101944,1704905442591,-3000.0,0.00037,2]
[311101945,1704905442600,-4878.6747,0.00037,2]
[311101947,1704905442608,-155.0,0.00037,2]
[311101949,1704905442617,-263.99964119,0.00037,30]
[311101951,1704905442626,-1087.247275,0.00037,5]
[311101953,1704905442637,-1000.0,0.00037024,2]
[311101954,1704905442646,-1000.0,0.00037054,30]
[311101956,1704905442655,-1000.0,0.00037054,30]
[311101958,1704905442664,-500.0,0.00037054,120]
[311101960,1704905442673,-1965.990009,0.00037054,30]
[311101962,1704905442682,-1912.752725,0.00037054,30]
[311101964,1704905442690,-304.949637,0.00037054,30]
[311101966,1704905442699,-4984.55,0.00037075,2]
[311101968,1704905442708,-151.15,0.0003709,2]
[311101970,1704905442717,-863.0,0.000371,2]
[311101971,1704905442726,-471.34,0.000371,2]
[311101972,1704905442736,-2294.68107791,0.00037116,10]
[311101973,1704905442745,-3110.888641,0.00037217,2]
[311101974,1704905442754,-342.645283,0.00037217,2]
[311101975,1704905442763,-364.944773,0.00037217,2]
[311101976,1704905442773,-228.430188,0.00037217,2]
[311101977,1704905442782,-2073.925762,0.00037217,2]
[311101978,1704905442791,-13688.46009659,0.00037223,2]
[311101979,1704905442800,-810.37124825,0.0003724,4]
[311101980,1704905442809,-155.03847875,0.00037323,2]
[311101981,1704905442818,-211.15900098,0.00037351,7]
[311101982,1704905442828,-153.84,0.00037443,2]
[311101983,1704905442838,-150.0,0.00037491,2]
[311101984,1704905442848,-163.69791724,0.00037529,7]
[311101985,1704905442857,-500.0,0.00037561,10]
[311101986,1704905442867,-1663.70810849,0.00037571,2]
[311101987,1704905442876,-154.94747985,0.00037593,7]
[311101988,1704905442887,-187.0,0.00037625,2]
[311101989,1704905442896,-3110.888641,0.00037665,2]
[311101990,1704905442906,-342.645283,0.00037665,2]
[311101991,1704905442914,-364.944773,0.00037665,2]
[311101992,1704905442924,-228.430188,0.00037665,2]
[311101993,1704905442933,-2073.925762,0.00037665,2]
[311101994,1704905442942,-174.159974,0.00037665,2]
[311101995,1704905442952,-2294.68107791,0.0003767,10]
[311101996,1704905442961,-155.03847875,0.00037713,2]
[311101997,1704905442970,-211.15900098,0.00037723,7]
[311101998,1704905442980,-467.65,0.00037787,2]
[311101999,1704905442988,-208.0,0.0003779,2]
[311102000,1704905442998,-172.26351288,0.00037823,28]
[311102001,1704905443007,-163.69791724,0.00037833,7]
[311102002,1704905443018,-291.46,0.000379,2]
[311102003,1704905443027,-680635.396736,0.000379,2]
[311102004,1704905443037,-159.49727413,0.00037923,7]
[311102005,1704905443047,-100000.0,0.00038,3]
[311102006,1704905443057,-353.02431632,0.00038,120]
[311102007,1704905443067,-165.0,0.00038,2]
[311102008,1704905443077,-20969.82507592,0.00038,5]
[311102009,1704905443087,-1035.12,0.00038047,2]
[311102010,1704905443096,-159.49727413,0.0003805,7]
[311102011,1704905443105,-807.97387525,0.00038058,2]
[311102012,1704905443114,-159.49727413,0.00038081,7]
[311102013,1704905443123,-163.69791724,0.00038084,7]
[311102014,1704905443133,-155.03847875,0.00038103,2]
[311102015,1704905443142,-150.80834968,0.00038172,7]
[311102017,1704905443151,-211.15900098,0.00038207,7]
[311102019,1704905443160,-2294.68107791,0.00038225,11]
[311102020,1704905443170,-163.69791724,0.00038326,7]
[311102021,1704905443180,-172.26351288,0.00038342,29]
[311102022,1704905443189,-4984.55,0.00038352,2]
[311102023,1704905443198,-202.56098016,0.00038356,4]
[311102024,1704905443207,-274.6149109,0.00038356,4]
[311102025,1704905443350,-500.0,0.00038356,4]
[311102026,1704905443361,-500.0,0.00038356,4]
[311102027,1704905443371,-500.0,0.00038356,4]
[311102028,1704905443380,-500.0,0.00038356,4]
[311102029,1704905443390,-635.68,0.00038356,4]
[311102030,1704905443399,-500.0,0.00038356,4]
[311102031,1704905443408,-500.0,0.00038356,4]
[311102032,1704905443417,-500.0,0.00038356,4]
[311102033,1704905443427,-500.0,0.00038356,4]
[311102034,1704905443438,-500.0,0.00038356,4]
[311102035,1704905443448,-500.0,0.00038356,2]
[311102036,1704905443458,-1000.0,0.00038356,2]
[311102037,1704905443468,-500.0,0.00038356,2]
[311102038,1704905443479,-325.80392087,0.00038356,4]
[311102039,1704905443492,-500.0,0.00038356,4]
[311102040,1704905443502,-500.0,0.00038356,4]
[311102041,1704905443511,-500.0,0.00038356,4]
[311102042,1704905443524,-500.0,0.00038356,4]
[311102043,1704905443534,-500.0,0.00038356,4]
[311102044,1704905443543,-329.79973622,0.00038356,4]